{"text_format":"1","workbook":"xlsx","n_sheets":1,"sheets":["Feuil1"],"not_rendered":{"charts":0,"images":0,"macros":1,"external_links":1,"defined_names":2,"comments":1,"pivot_tables":0},"unopened":[],"bounds":{"document_bytes":16777216,"sheet_cells":100000,"rows_first":2000,"rows_last":500,"rows_between":2000,"halvings":0,"cell_chars":16384,"cell_head_chars":4096},"cells_cut":0,"cells_raw":0,"read":"whole","date_system":"1900"}

{"sheet":"Feuil1","index":0,"n_rows":31,"n_cols":45,"rows_kept":31,"cut":false,"hidden":false,"merged":[[14,37,14,39],[26,37,26,39],[3,8,4,8],[16,37,16,39],[3,19,4,19],[7,37,7,39],[7,41,7,43],[8,37,8,39],[8,41,8,43],[9,41,9,43],[2,24,3,27],[2,28,3,31],[2,32,3,35],[2,20,3,23],[10,37,10,39],[11,41,11,43],[13,37,13,39],[13,41,13,43],[0,20,0,39],[3,9,4,9],[3,10,4,10],[0,0,0,19],[2,0,4,0],[2,1,4,1],[2,2,2,11],[2,12,2,19],[3,13,4,13],[3,14,4,14],[3,15,4,15],[3,16,4,16],[3,2,4,2],[3,3,4,3],[3,4,4,4],[3,7,4,7]]}
[]
[]
["Date","Name","ARRIVEE",null,null,null,null,null,null,null,null,null,"DEPART",null,null,null,null,null,null,null,"DR 1",null,null,null,"DR 2",null,null,null,"DR 3",null,null,null,"DR4",null,null,null,null," SUIVI DU MOIS\n(calculs automatiques ne pas modifier)"]
[null,null,"n°","Immat","Pkg","Heure","Heure","P","NB","C","M","Ponctu.","n°","P","Nb","C","M","Heure","Heure","Durée du retard"]
[null,null,null,null,null,"Prévue","Réelle",null,null,null,null,null,null,null,null,null,null,"Prévue","Réelle",null,"Code","Sous code","Durée\n(00:00)","Explication","Code","Sous code","Durée\n(00:00)","Explication","Code","Sous code","Durée\n(00:00)","Explication","Code","Sous code","Durée\n(00:00)","Explication"]
[null,null,null,null,null,null,null,null,null,null,null,null,"AA1"]
[null,null,null,null,null,null,null,null,null,null,null,null,"AA2",null,null,null,null,null,null,null,null,null,null,null,null,null,null,null,null,null,null,null,null,null,null,"zerze"]
[null,null,null,null,null,null,null,null,null,null,null,null,"AA3",null,null,null,null,null,null,null,null,null,null,null,null,null,null,null,null,null,null,null,null,null,null,null,null,null,null,null,{"$f":"COUNTIF(G:G,\">0:00\")","v":0},"Nombre de vol retardé au DPT",null,null,{"$f":"COUNTIF(T:T,\">0:00\")","v":0}]
[null,null,null,null,null,null,null,null,null,null,null,null,"AA4",null,null,null,null,null,null,null,null,null,null,null,null,null,null,null,null,null,null,null,null,null,null,null,null,null,null,null,{"$f":"COUNTIF(S:S,\">0:00\")","v":0},"Durée moyenne des retards",null,null,{"$f":"((SUM(T:T))/AS8)","v":{"$error":"#DIV/0!"}}]
[null,null,null,null,null,null,null,null,null,null,null,null,"AA5",null,null,null,null,null,null,null,null,null,null,null,null,null,null,null,null,null,null,null,null,null,null,null,null,null,null,null,null,"Taux de ponctualité DPT",null,null,{"$f":"((AO9-AS8)/AO9)","v":{"$error":"#DIV/0!"}}]
[null,null,null,null,null,null,null,null,null,null,null,null,"AA6",null,null,null,null,null,null,null,null,null,null,null,null,null,null,null,null,null,null,null,null,null,null,null,null,null,null,null,{"$f":"SUM(N:N)","v":0}]
[null,null,null,null,null,null,null,null,null,null,null,null,"AA7",null,null,null,null,null,null,null,null,null,null,null,null,null,null,null,null,null,null,null,null,null,null,null,null,null,null,null,null,"Nombre de retards GEH",null,null,{"$f":"SUM(AS17:AS28)","v":0}]
[null,null,null,null,null,null,null,null,null,null,null,null,"AA8"]
[null,null,null,null,null,null,null,null,null,null,null,null,"AA9",null,null,null,null,null,null,null,null,null,null,null,null,null,null,null,null,null,null,null,null,null,null,null,null,null,null,null,{"$f":"COUNTIF(L:L,\">0:00\")","v":0},"Taux de ponctualité GEH",null,null,{"$f":"((AO9-AS12)/AO9)","v":{"$error":"#DIV/0!"}}]
[null,null,null,null,null,null,null,null,null,null,null,null,"AA10",null,null,null,null,null,null,null,null,null,null,null,null,null,null,null,null,null,null,null,null,null,null,null,null,null,null,null,{"$f":"AVERAGE(L6:L31)","v":{"$error":"#DIV/0!"}}]
[null,null,null,null,null,null,null,null,null,null,null,null,"AA11"]
[null,null,null,null,null,null,null,null,null,null,null,null,"AA12",null,null,null,null,null,null,null,null,null,null,null,null,null,null,null,null,null,null,null,null,null,null,null,null,null,null,null,{"$f":"((AO8-AO14)/AO8)","v":{"$error":"#DIV/0!"}},null,null,11,{"$f":"COUNTIF(U:AC,\"=11\")","v":0}]
[null,null,null,null,null,null,null,null,null,null,null,null,"AA13",null,null,null,null,null,null,null,null,null,null,null,null,null,null,null,null,null,null,null,null,null,null,null,null,null,null,null,null,null,null,13,{"$f":"COUNTIF(U:AC,\"=13\")","v":0}]
[null,null,null,null,null,null,null,null,null,null,null,null,"AA14",null,null,null,null,null,null,null,null,null,null,null,null,null,null,null,null,null,null,null,null,null,null,null,null,null,null,null,null,null,null,15,{"$f":"COUNTIF(U:AC,\"=15\")","v":0}]
[null,null,null,null,null,null,null,null,null,null,null,null,"AA15",null,null,null,null,null,null,null,null,null,null,null,null,null,null,null,null,null,null,null,null,null,null,null,null,null,null,null,null,null,null,18,{"$f":"COUNTIF(U:AC,\"=18\")","v":0}]
[null,null,null,null,null,null,null,null,null,null,null,null,"AA16",null,null,null,null,null,null,null,null,null,null,null,null,null,null,null,null,null,null,null,null,null,null,null,null,null,null,null,null,null,null,19,{"$f":"COUNTIF(U:AC,\"=19\")","v":0}]
[null,null,null,null,null,null,null,null,null,null,null,null,"AA17",null,null,null,null,null,null,null,null,null,null,null,null,null,null,null,null,null,null,null,null,null,null,null,null,null,null,null,null,null,null,31,{"$f":"COUNTIF(U:AC,\"=31\")","v":0}]
[null,null,null,null,null,null,null,null,null,null,null,null,"AA18",null,null,null,null,null,null,null,null,null,null,null,null,null,null,null,null,null,null,null,null,null,null,null,null,null,null,null,null,null,null,32,{"$f":"COUNTIF(U:AC,\"=32\")","v":0}]
[null,null,null,null,null,null,null,null,null,null,null,null,"AA19",null,null,null,null,null,null,null,null,null,null,null,null,null,null,null,null,null,null,null,null,null,null,null,null,null,null,null,null,null,null,33,{"$f":"COUNTIF(U:AC,\"=33\")","v":0}]
[null,null,null,null,null,null,null,null,null,null,null,null,"AA20",null,null,null,null,null,null,null,null,null,null,null,null,null,null,null,null,null,null,null,null,null,null,null,null,null,null,null,null,null,null,34,{"$f":"COUNTIF(U:AC,\"=34\")","v":0}]
[null,null,null,null,null,null,null,null,null,null,null,null,"AA21",null,null,null,null,null,null,null,null,null,null,null,null,null,null,null,null,null,null,null,null,null,null,null,null,null,null,null,null,null,null,35,{"$f":"COUNTIF(U:AC,\"=35\")","v":0}]
[null,null,null,null,null,null,null,null,null,null,null,null,"AA22",null,null,null,null,null,null,null,null,null,null,null,null,null,null,null,null,null,null,null,null,null,null,null,null,null,null,null,null,null,null,39,{"$f":"COUNTIF(U:AC,\"=39\")","v":0}]
[null,null,null,null,null,null,null,null,null,null,null,null,"AA23",null,null,null,null,null,null,null,null,null,null,null,null,null,null,null,null,null,null,null,null,null,null,null,null,null,null,null,null,null,null,null,{"$f":"COUNTIF(U:AC,\"=39\")","v":0}]
[null,null,null,null,null,null,null,null,null,null,null,null,"AA24"]
[null,null,null,null,null,null,null,null,null,null,null,null,"AA25"]
[null,null,null,null,null,null,null,null,null,null,null,null,"AA26"]